bitfinex/quotes_BTCUSD_20240823
["timestamp","ask_amount","ask_price","bid_price","bid_amount"]
[1724444226847,0.156583,63864.0,63849.0,0.0711]
[1724444226999,0.006,63859.0,63850.0,0.18700298]
[1724444227205,0.00100002,63858.0,63850.0,0.18700298]
[1724444227535,0.004,63859.0,63852.0,0.156611]
[1724444227758,0.156579,63866.0,63853.0,0.023]
[1724444227964,0.313152,63867.0,63853.0,0.023]
[1724444228156,0.004,63864.0,63851.0,0.336225]
[1724444228362,0.156576,63867.0,63854.0,0.156606]
[1724444228587,0.156576,63867.0,63852.0,0.313222]
[1724444228588,0.156573,63868.0,63855.0,0.18700298]
[1724444228797,0.0931,63871.0,63855.0,0.16400298]
[1724444229006,0.156578,63866.0,63856.0,0.023]
[1724444229539,0.0931,63871.0,63860.0,0.09]
[1724444229739,0.13153932,63877.0,63861.0,0.23090298]
[1724444229977,0.0848,63877.0,63865.0,0.156578]
[1724444230141,0.313107,63876.0,63863.0,0.156584]
[1724444230381,0.313107,63876.0,63855.0,0.0669]
[1724444230382,0.31317,63864.0,63855.0,0.0669]
[1724444230546,0.31317,63864.0,63856.0,0.51529154]
[1724444230547,0.004,63864.0,63856.0,0.51529154]
[1724444230764,0.0848,63865.0,63856.0,0.51529154]
[1724444230765,0.0848,63865.0,63856.0,0.023]
[1724444231192,0.0848,63865.0,63857.0,0.156599]
[1724444231376,0.313138,63870.0,63856.0,0.023]
[1724444231377,0.313147,63868.0,63856.0,0.023]
[1724444231791,0.004,63864.0,63856.0,0.179602]
[1724444231979,0.004,63864.0,63856.0,0.023]
[1724444232491,0.160582,63864.0,63856.0,0.023]
[1724444232754,0.004,63864.0,63856.0,0.023]
[1724444232964,0.004,63864.0,63856.0,0.1796]
[1724444233192,0.004,63864.0,63857.0,0.156599]
[1724444233406,0.004,63864.0,63856.0,0.023]
[1724444233619,0.160582,63864.0,63856.0,0.179601]
[1724444233819,0.15958,63865.0,63856.0,0.179601]
[1724444234034,0.15658,63865.0,63856.0,0.179601]
[1724444234287,0.002,63864.0,63856.0,0.023]
[1724444234484,0.35985754,63872.0,63856.0,0.023]
[1724444234485,0.04672954,63872.0,63856.0,0.023]
[1724444234692,0.04672954,63872.0,63860.0,0.313182]
[1724444234693,0.002,63864.0,63860.0,0.313182]
[1724444234901,0.002,63864.0,63862.0,0.156586]
[1724444235105,0.002,63864.0,63861.0,0.023]
[1724444235106,0.002,63864.0,63863.0,0.469755]
[1724444235323,0.002,63864.0,63863.0,1.203695]
[1724444235567,0.002,63864.0,63863.0,0.890525]
[1724444236395,0.0911,63876.0,63863.0,0.890525]
[1724444236396,0.0911,63876.0,63863.0,0.42077]
[1724444236604,0.04754985,63879.0,63871.0,0.156564]
[1724444236605,0.157371,63879.0,63871.0,0.156564]
[1724444236813,0.157371,63879.0,63868.0,0.313141]
[1724444236814,0.000825,63879.0,63872.0,0.313121]
[1724444237027,0.000825,63879.0,63873.0,0.18700298]
[1724444237232,0.000825,63879.0,63878.0,0.156548]
[1724444237464,0.000825,63879.0,63878.0,0.492644]
[1724444237689,0.000825,63879.0,63878.0,0.88034]
[1724444237913,0.000825,63879.0,63878.0,0.567244]
[1724444238201,0.000825,63879.0,63878.0,0.0976]
[1724444238416,0.002825,63879.0,63878.0,0.254148]
[1724444239063,0.002825,63879.0,63878.0,0.0976]
[1724444239244,0.002825,63879.0,63878.0,0.254148]
[1724444239500,0.002825,63879.0,63878.0,0.567244]
[1724444239708,0.002825,63879.0,63878.0,0.254148]
[1724444239914,0.000825,63879.0,63878.0,0.254148]
[1724444240115,0.000825,63879.0,63878.0,0.255148]
[1724444240116,0.001825,63879.0,63878.0,0.255148]
[1724444240800,0.002825,63879.0,63878.0,0.256148]
[1724444241193,0.001825,63879.0,63878.0,0.255148]
[1724444241399,0.002825,63879.0,63878.0,0.256148]
[1724444242430,0.002825,63879.0,63878.0,0.569244]
[1724444242665,0.002825,63879.0,63878.0,0.256148]
[1724444243069,0.002825,63879.0,63878.0,0.002]
[1724444243282,0.001825,63879.0,63878.0,0.001]
[1724444243461,0.002825,63879.0,63878.0,0.002]
[1724444244097,0.001825,63879.0,63878.0,0.001]
[1724444244727,0.000825,63879.0,63878.0,0.001]
[1724444244931,0.61540402,63879.0,63878.0,0.002]
[1724444245141,0.97425794,63879.0,63878.0,0.001]
[1724444245345,1.17654156,63879.0,63878.0,0.001]
[1724444245558,1.17754156,63879.0,63878.0,0.002]
[1724444245767,1.27109088,63879.0,63878.0,0.001]
[1724444245977,0.95051221,63879.0,63878.0,0.001]
[1724444246184,0.880352,63879.0,63878.0,0.002]
[1724444246597,0.61403547,63879.0,63878.0,0.002]
[1724444246806,0.567261,63879.0,63878.0,0.002]
[1724444247021,0.567261,63879.0,63878.0,0.001]
[1724444247232,0.95051221,63879.0,63878.0,0.001]
[1724444247438,1.03549999,63879.0,63878.0,0.002]
[1724444247650,0.72241814,63879.0,63878.0,0.002]
[1724444247887,0.65224878,63879.0,63878.0,0.001]
[1724444248066,0.96533978,63879.0,63878.0,0.001]
[1724444248247,0.65224878,63879.0,63878.0,0.002]
[1724444248500,0.96633978,63879.0,63878.0,0.002]
[1724444248707,0.96533978,63879.0,63878.0,0.002]
[1724444248913,0.72241814,63879.0,63878.0,0.002]
[1724444249121,0.65224878,63879.0,63878.0,0.002]
[1724444249326,0.567261,63879.0,63878.0,0.002]
[1724444249526,0.880352,63879.0,63878.0,0.002]
[1724444249748,0.567261,63879.0,63878.0,0.002]
[1724444250169,0.95052136,63879.0,63878.0,0.002]
[1724444250378,0.63744353,63879.0,63878.0,0.002]
[1724444250587,0.568261,63879.0,63878.0,0.002]
[1724444250764,0.63744353,63879.0,63878.0,0.002]
[1724444251221,0.567261,63879.0,63878.0,0.002]
[1724444251452,0.72133708,63879.0,63878.0,0.002]
[1724444251887,1.51449786,63879.0,63878.0,0.002]
[1724444252066,1.56370984,63879.0,63878.0,0.002]
[1724444252494,1.39973106,63879.0,63878.0,0.002]
[1724444252659,1.71282206,63879.0,63878.0,0.002]
[1724444252892,1.71182206,63879.0,63878.0,0.002]
[1724444253108,1.71182206,63879.0,63878.0,0.001]
[1724444253904,0.782802,63873.0,63872.0,0.1]
[1724444255810,0.788802,63873.0,63872.0,0.1]
[1724444256002,0.792802,63873.0,63872.0,0.1]
[1724444256545,1.105923,63873.0,63872.0,0.1]
[1724444256865,1.51141828,63873.0,63872.0,0.1]
[1724444257112,1.99483772,63873.0,63872.0,0.1]
[1724444257281,1.98883772,63873.0,63872.0,0.1]
[1724444257704,1.99383772,63873.0,63872.0,0.1]
[1724444258148,1.98483772,63873.0,63872.0,0.07598416]
[1724444258354,1.98483772,63873.0,63861.0,0.0009075]
[1724444258355,1.101112,63862.0,63861.0,0.0009075]
[1724444258647,2.27195617,63862.0,63861.0,0.0009075]
[1724444258853,2.74991598,63862.0,63861.0,0.0009075]
[1724444259287,2.74991598,63862.0,63839.0,0.49229154]
[1724444259288,1.414395,63857.0,63839.0,0.49229154]
[1724444259493,2.32924041,63857.0,63839.0,0.49229154]
[1724444259703,2.49321919,63857.0,63839.0,0.49229154]
[1724444259907,2.28187332,63857.0,63839.0,0.49229154]
[1724444260527,2.21252019,63857.0,63839.0,0.49229154]
[1724444260902,2.04854141,63857.0,63839.0,0.49229154]
[1724444261484,2.06254141,63857.0,63841.0,0.0954]
[1724444261685,2.07654141,63857.0,63841.0,0.0954]
[1724444261888,2.06254141,63857.0,63841.0,0.0954]
[1724444262101,2.07654141,63857.0,63841.0,0.0954]
[1724444262310,2.24052019,63857.0,63841.0,0.0954]
[1724444263114,2.55371919,63857.0,63834.0,0.0704]
[1724444264172,2.54878911,63857.0,63834.0,0.0704]
[1724444264553,2.52078911,63857.0,63834.0,0.0704]
[1724444264999,2.54878911,63857.0,63834.0,0.0704]
[1724444266126,2.54878911,63857.0,63856.0,5e-07]
[1724444266300,2.54878911,63857.0,63830.0,0.2]
[1724444266301,1.099644,63831.0,63830.0,0.2]
[1724444266505,1.26364698,63831.0,63830.0,0.2]
[1724444267445,1.57797398,63831.0,63830.0,0.2]
[1724444267648,1.26064698,63831.0,63830.0,0.2]
[1724444267849,1.26241928,63831.0,63830.0,0.2]
[1724444268051,1.26441928,63831.0,63830.0,0.2]
[1724444268474,1.26041928,63831.0,63830.0,0.2]
[1724444268909,1.26441928,63831.0,63830.0,0.2]
[1724444269142,1.26041928,63831.0,63830.0,0.2]
[1724444269425,1.26241928,63831.0,63830.0,0.2]
[1724444269674,1.26241928,63831.0,63830.0,0.223]
[1724444269675,1.26041928,63831.0,63830.0,0.223]
[1724444271020,1.42229321,63831.0,63830.0,0.223]
[1724444271751,1.73662021,63831.0,63830.0,0.2]
[1724444272034,1.93742021,63831.0,63830.0,0.2]
[1724444273375,1.98404067,63831.0,63830.0,0.2009086]
[1724444273987,2.29736767,63831.0,63830.0,0.2009086]
[1724444274210,2.29734153,63831.0,63830.0,0.2009086]
[1724444274426,2.25074721,63831.0,63830.0,0.2009086]
[1724444274636,2.66466853,63831.0,63830.0,0.0442436]
[1724444274841,2.35134153,63831.0,63830.0,0.0442436]
[1724444274990,2.30474721,63831.0,63830.0,0.0442436]
[1724444275196,2.30874721,63831.0,63830.0,0.0442436]
[1724444275515,2.31474721,63831.0,63830.0,0.0442436]
[1724444278388,2.36126059,63831.0,63823.0,0.0525]
[1724444278597,1.415124,63824.0,63823.0,0.0525]
[1724444278828,1.57912698,63824.0,63823.0,0.0525]
[1724444280021,1.67912698,63824.0,63823.0,0.0525]
[1724444280651,1.77872698,63824.0,63823.0,0.0525]
[1724444280830,1.94270576,63824.0,63823.0,0.0525]
[1724444281051,2.25606676,63824.0,63823.0,0.0525]
[1724444281253,2.25606676,63824.0,63811.0,0.009086]
[1724444281254,1.51499,63812.0,63811.0,0.009086]
[1724444281475,1.77899298,63812.0,63811.0,0.009086]
[1724444281685,1.77799298,63812.0,63811.0,0.009086]
[1724444281886,1.84237176,63812.0,63811.0,0.009086]
[1724444282702,1.84337176,63812.0,63811.0,0.009086]
[1724444282898,2.15679176,63812.0,63811.0,0.009086]
[1724444283105,1.94387176,63812.0,63811.0,0.009086]
[1724444283324,2.27129176,63812.0,63811.0,0.009086]
[1724444283531,1.95787176,63812.0,63811.0,0.009086]
[1724444283707,1.97187176,63812.0,63811.0,0.009086]
[1724444283941,2.28529176,63812.0,63811.0,0.009086]
[1724444284295,1.94387176,63812.0,63811.0,0.009086]
[1724444284492,2.25729176,63812.0,63811.0,0.009086]
[1724444284733,1.95787176,63812.0,63811.0,0.009086]
[1724444284944,1.97187176,63812.0,63811.0,0.009086]
[1724444285143,2.28529176,63812.0,63811.0,0.009086]
[1724444285565,1.97187176,63812.0,63811.0,0.009086]
[1724444287442,2.28529176,63812.0,63811.0,0.009086]
[1724444287825,2.33929176,63812.0,63811.0,0.009086]
[1724444288227,2.33929176,63812.0,63795.0,0.0752]
[1724444288228,0.47516,63808.0,63795.0,0.0752]
[1724444288437,0.161732,63803.0,63795.0,0.0752]
[1724444288657,0.73919898,63803.0,63798.0,0.023]
[1724444288860,1.67959098,63803.0,63798.0,0.023]
[1724444289871,1.67959098,63803.0,63771.0,0.0009075]
[1724444289872,1.512976,63772.0,63771.0,0.0009075]
[1724444290102,1.78097898,63772.0,63771.0,0.0009075]
[1724444290301,1.78097898,63772.0,63750.0,0.1015]
[1724444290302,1.78097898,63772.0,63769.0,1e-06]
[1724444290303,0.789067,63770.0,63769.0,1e-06]
[1724444290469,1.95667255,63770.0,63769.0,1e-06]
[1724444290653,0.31474,63747.0,63746.0,0.0758]
[1724444290890,1.10309,63747.0,63746.0,0.0758]
[1724444291077,1.10309,63747.0,63742.0,0.0525]
[1724444291078,0.784397,63743.0,63742.0,0.0525]
[1724444291306,1.26415898,63743.0,63742.0,0.0525]
[1724444291546,1.26615898,63743.0,63742.0,0.0525]
[1724444291761,1.40628065,63743.0,63742.0,0.0525]
[1724444291985,1.26215898,63743.0,63742.0,0.0525]
[1724444292262,1.098156,63743.0,63742.0,0.0525]
[1724444292911,1.1099008,63743.0,63742.0,0.0525]
[1724444293136,1.1129008,63743.0,63742.0,0.0525]
[1724444293350,1.1229008,63743.0,63742.0,0.0525]
[1724444293825,1.1229008,63743.0,63742.0,0.0755]
[1724444294285,1.28690378,63743.0,63742.0,0.0755]
[1724444294500,0.97314478,63743.0,63742.0,0.0755]
[1724444294942,0.96114478,63743.0,63742.0,0.0755]
[1724444295404,0.97314478,63743.0,63742.0,0.0755]
[1724444295623,1.27490378,63743.0,63742.0,0.0755]
[1724444295849,1.28690378,63743.0,63742.0,0.0755]
[1724444296109,1.41569416,63743.0,63742.0,0.0755]
[1724444296574,0.8091418,63743.0,63742.0,0.0755]
[1724444297021,1.1229008,63743.0,63742.0,0.0755]
[1724444297451,1.1099008,63743.0,63742.0,0.0755]
[1724444297899,1.28990378,63743.0,63742.0,0.0755]
[1724444298123,1.28590378,63743.0,63742.0,0.0755]
[1724444298347,1.41459416,63743.0,63742.0,0.0755]
[1724444299037,1.41459416,63743.0,63742.0,0.0764086]
[1724444299230,1.26190378,63743.0,63742.0,0.0764086]
[1724444299436,1.27490378,63743.0,63742.0,0.0764086]
[1724444299663,1.27490378,63743.0,63742.0,0.0534086]
[1724444299664,1.58966278,63743.0,63742.0,0.0534086]
[1724444299907,1.68966278,63743.0,63742.0,0.0534086]
[1724444300118,1.68966278,63743.0,63742.0,0.00342451]
[1724444300119,1.85464156,63743.0,63742.0,0.00342451]
[1724444300371,1.86964156,63743.0,63742.0,0.00342451]
[1724444301232,1.70566278,63743.0,63742.0,0.00342451]
[1724444301928,1.69366278,63743.0,63742.0,0.00342451]
[1724444302136,1.68066278,63743.0,63742.0,0.00342451]
[1724444302344,1.69466278,63743.0,63742.0,0.00342451]
[1724444302544,1.70866278,63743.0,63742.0,0.00342451]
[1724444302748,1.84378322,63743.0,63742.0,0.00342451]
[1724444302975,1.37690378,63743.0,63742.0,0.00342451]
[1724444303181,1.36190378,63743.0,63742.0,0.02642451]
[1724444303381,0.184879,63743.0,63742.0,0.02642451]
[1724444303591,0.812397,63743.0,63742.0,0.12712451]
[1724444303850,0.94839998,63743.0,63742.0,0.12712451]
[1724444304225,1.05723998,63743.0,63742.0,0.12712451]
[1724444304446,0.96239998,63743.0,63742.0,0.12712451]
[1724444305023,0.97639998,63743.0,63742.0,0.12712451]
[1724444305422,0.96239998,63743.0,63742.0,0.12712451]
[1724444305628,0.97639998,63743.0,63742.0,0.12712451]
[1724444305862,0.99039998,63743.0,63742.0,0.12712451]
[1724444306029,1.12091428,63743.0,63742.0,0.12712451]
[1724444306228,1.43467328,63743.0,63742.0,0.12712451]
[1724444306586,1.53467328,63743.0,63742.0,0.02642451]
[1724444307445,1.53567328,63743.0,63742.0,0.02642451]
[1724444307861,1.09039998,63743.0,63742.0,0.02642451]
[1724444308321,0.198879,63743.0,63742.0,0.02642451]
[1724444308508,1.30415898,63743.0,63742.0,0.02642451]
[1724444309505,1.30515898,63743.0,63742.0,0.02642451]
[1724444309693,1.40915898,63743.0,63742.0,0.02642451]
[1724444309896,1.88489676,63743.0,63742.0,0.00342451]
[1724444310104,1.88689676,63743.0,63742.0,0.00342451]
[1724444310303,0.784535,63732.0,63731.0,0.0767]
[1724444310500,1.26235198,63732.0,63731.0,0.0767]
[1724444311206,0.94853798,63732.0,63731.0,0.0767]
[1724444311440,1.07487138,63732.0,63731.0,0.0767]
[1724444311825,1.07687138,63732.0,63731.0,0.0767]
[1724444311976,1.08087138,63732.0,63731.0,0.0997]
[1724444312354,0.95453798,63732.0,63731.0,0.0997]
[1724444312566,0.313784,63738.0,63731.0,0.0997]
[1724444312772,0.100827,63743.0,63732.0,0.1179]
[1724444312773,0.156904,63733.0,63732.0,0.1179]
[1724444312979,0.156904,63733.0,63732.0,0.023]
[1724444312980,0.94829538,63733.0,63732.0,0.023]
[1724444313203,1.26210438,63733.0,63732.0,0.023]
[1724444313887,1.26210438,63733.0,63732.0,0.017]
[1724444313888,0.94829538,63733.0,63732.0,0.017]
[1724444315321,0.156916,63728.0,63727.0,0.0746]
[1724444315780,0.470749,63728.0,63727.0,0.0746]
[1724444316016,0.004,63732.0,63727.0,0.2033]
[1724444316261,0.006,63733.0,63732.0,0.231507]
[1724444316504,0.011,63733.0,63732.0,0.1803]
[1724444316730,0.011,63733.0,63732.0,0.2033]
[1724444316972,0.005,63733.0,63732.0,0.2033]
[1724444317451,0.156893,63738.0,63732.0,0.2033]
[1724444317678,0.156893,63738.0,63733.0,0.023]
[1724444318144,0.313786,63738.0,63733.0,0.023]
[1724444318374,0.0628367,63739.0,63733.0,0.023]
[1724444318841,0.0628367,63739.0,63733.0,0.022]
[1724444318842,0.1569,63735.0,63733.0,0.022]
[1724444319082,0.16400298,63738.0,63733.0,0.022]
[1724444319083,0.156893,63738.0,63733.0,0.022]
[1724444319331,0.156898,63736.0,63733.0,0.023]
[1724444319535,0.470706,63734.0,63733.0,0.022]
[1724444320358,0.470706,63734.0,63733.0,0.023]
[1724444320591,0.78451,63734.0,63733.0,0.023]
[1724444320799,0.470706,63734.0,63733.0,0.023]
[1724444321641,0.470706,63734.0,63733.0,0.022]
[1724444322101,0.78551,63734.0,63733.0,0.031]
[1724444322313,0.471706,63734.0,63733.0,0.031]
[1724444322959,0.78551,63734.0,63733.0,0.031]
[1724444323398,0.471706,63734.0,63733.0,0.031]
[1724444323606,0.54133962,63734.0,63733.0,0.031]
[1724444324225,0.62693448,63734.0,63733.0,0.031]
[1724444324440,0.22753562,63734.0,63733.0,0.031]
[1724444324648,0.07063362,63734.0,63733.0,0.031]
[1724444324860,0.22753562,63734.0,63733.0,0.031]
[1724444325285,0.54133962,63734.0,63733.0,0.031]
[1724444325500,0.85514362,63734.0,63733.0,0.031]
[1724444325926,1.41854776,63734.0,63733.0,0.031]
[1724444327205,1.44315272,63734.0,63733.0,0.031]
[1724444327649,1.44415272,63734.0,63733.0,0.031]
[1724444327855,0.784595,63727.0,63726.0,0.0841]
[1724444328060,0.85422862,63727.0,63726.0,0.0841]
[1724444328281,0.54039062,63727.0,63726.0,0.0841]
[1724444328500,0.06963362,63727.0,63726.0,0.1899]
[1724444328707,0.02460686,63727.0,63726.0,0.1899]
[1724444328933,0.09424048,63727.0,63726.0,0.1899]
[1724444329138,0.09424048,63727.0,63726.0,0.1959]
[1724444329139,0.09524048,63727.0,63726.0,0.1959]
[1724444329620,0.09524048,63727.0,63726.0,0.35990298]
[1724444329815,0.000827,63743.0,63726.0,0.35990298]
[1724444329816,0.000827,63743.0,63737.0,0.470683]
[1724444330028,0.000827,63743.0,63737.0,1.45366398]
[1724444330265,0.02459851,63740.0,63739.0,0.003]
[1724444330447,0.02459851,63740.0,63739.0,1.44542898]
[1724444330679,0.000827,63743.0,63742.0,0.78741]
[1724444330915,0.000827,63743.0,63742.0,1.54237698]
[1724444331132,0.000827,63743.0,63742.0,1.58992513]
[1724444331345,0.000827,63743.0,63742.0,0.52408498]
[1724444331557,0.000827,63743.0,63742.0,0.83784898]
[1724444331989,0.000827,63743.0,63742.0,0.2032]
[1724444332214,0.001827,63743.0,63742.0,0.2092]
[1724444332424,0.000827,63743.0,63742.0,0.2032]
[1724444332835,0.002827,63743.0,63742.0,0.2182]
[1724444333035,0.0025974,63743.0,63742.0,0.2122]
[1724444333894,0.0015974,63743.0,63742.0,0.2032]
[1724444334307,0.0015974,63743.0,63742.0,0.673846]
[1724444334517,0.0025974,63743.0,63742.0,0.675846]
[1724444334724,0.0025974,63743.0,63742.0,0.673846]
[1724444334725,0.0005974,63743.0,63742.0,0.673846]
[1724444334908,0.0005974,63743.0,63742.0,0.675846]
[1724444335143,0.0015974,63743.0,63742.0,0.675846]
[1724444335347,0.0015974,63743.0,63742.0,0.673846]
[1724444335554,0.0015974,63743.0,63742.0,0.675846]
[1724444335729,0.02719414,63743.0,63742.0,0.98961]
[1724444335968,0.02719414,63743.0,63742.0,0.99361]
[1724444336344,0.02719414,63743.0,63742.0,0.98961]
[1724444336576,0.02819414,63743.0,63742.0,0.99661]
[1724444337184,0.02719414,63743.0,63742.0,0.98961]
[1724444337387,0.02519414,63743.0,63742.0,0.98761]
[1724444337800,0.02619414,63743.0,63742.0,0.99561]
[1724444338001,0.02619414,63743.0,63742.0,0.98761]
[1724444338446,0.0025974,63743.0,63742.0,0.99561]
[1724444338653,0.0251945,63743.0,63742.0,0.360082]
[1724444338867,0.0261945,63743.0,63742.0,0.683846]
[1724444339287,0.0271945,63743.0,63742.0,1.00461]
[1724444339699,0.0261945,63743.0,63742.0,0.99761]
[1724444340138,0.0271945,63743.0,63742.0,1.00661]
[1724444340387,0.0271945,63743.0,63742.0,1.48437698]
[1724444340619,0.0025974,63743.0,63742.0,1.79914098]
[1724444340861,0.0025974,63743.0,63742.0,1.89914098]
[1724444341118,0.0025974,63743.0,63742.0,1.90114098]
[1724444341828,0.0015974,63743.0,63742.0,1.89114098]
[1724444342096,0.0015974,63743.0,63742.0,1.88914098]
[1724444342312,0.0015974,63743.0,63742.0,1.88214098]
[1724444342550,0.0025974,63743.0,63742.0,1.89114098]
[1724444342778,0.0035974,63743.0,63742.0,1.89814098]
[1724444342987,0.0025974,63743.0,63742.0,1.88914098]
[1724444343194,0.0035974,63743.0,63742.0,1.90314098]
[1724444343629,0.0035974,63743.0,63742.0,1.58637698]
[1724444343835,0.0005974,63743.0,63742.0,0.91484898]
[1724444344061,0.0005974,63743.0,63742.0,1.24261298]
[1724444344266,0.0005974,63743.0,63742.0,1.25661298]
[1724444344474,0.0005974,63743.0,63742.0,1.24261298]
[1724444344911,0.0005974,63743.0,63742.0,0.2082]
[1724444345123,0.0005974,63743.0,63742.0,0.2172]
[1724444345562,0.0005974,63743.0,63742.0,0.374082]
[1724444345800,0.0005974,63743.0,63742.0,0.388082]
[1724444345801,0.0015974,63743.0,63742.0,0.388082]
[1724444346042,0.0015974,63743.0,63742.0,0.051]
[1724444346285,0.0005974,63743.0,63742.0,0.037]
[1724444346516,0.0005974,63743.0,63742.0,0.023]
[1724444346517,0.15947642,63743.0,63742.0,0.023]
[1724444346975,0.15947642,63743.0,63742.0,0.009]
[1724444347447,0.78799442,63743.0,63742.0,0.02]
[1724444347938,1.20785342,63743.0,63742.0,0.02]
[1724444348166,0.8920944,63743.0,63742.0,0.009]
[1724444348403,0.156896,63737.0,63731.0,0.0009108]
[1724444348629,0.313783,63739.0,63731.0,0.0009108]
[1724444348871,0.156894,63738.0,63731.0,0.0009108]
[1724444349106,0.156893,63738.0,63731.0,0.1578188]
[1724444349344,0.18149493,63738.0,63731.0,0.1578188]
[1724444349588,0.156895,63737.0,63731.0,0.0009108]
[1724444349822,0.156895,63737.0,63731.0,0.0239108]
[1724444350277,0.156897,63736.0,63731.0,0.0239108]
[1724444350535,0.18449593,63738.0,63731.0,0.1578188]
[1724444350744,0.001,63737.0,63732.0,0.023]
[1724444351419,0.157895,63737.0,63732.0,0.023]
[1724444351628,0.156895,63737.0,63731.0,0.0009108]
[1724444351842,0.158895,63737.0,63731.0,0.0009108]
[1724444352515,0.156895,63737.0,63731.0,0.0009108]
[1724444352722,0.00100002,63736.0,63731.0,0.0009108]
[1724444352940,0.470721,63732.0,63731.0,0.0009108]
[1724444353181,0.78430499,63732.0,63731.0,0.0009108]
[1724444353388,1.09811899,63732.0,63731.0,0.0009108]
[1724444353606,0.78430499,63732.0,63731.0,0.0009108]
[1724444354104,1.14501242,63732.0,63731.0,0.0009108]
[1724444354554,1.33246212,63732.0,63731.0,0.0059108]
[1724444354811,1.26212197,63732.0,63731.0,0.0009108]
[1724444355268,1.26212197,63732.0,63731.0,0.0049108]
[1724444355514,1.47185472,63732.0,63731.0,0.0049108]
[1724444355721,1.50471457,63732.0,63731.0,0.0009108]
[1724444355937,1.36632197,63732.0,63731.0,0.0009108]
[1724444356150,1.43658523,63732.0,63731.0,0.0009108]
[1724444356394,0.88850499,63732.0,63731.0,0.0009108]
[1724444356610,0.51833211,63732.0,63731.0,0.0009108]
[1724444356830,0.001,63732.0,63731.0,0.0009108]
[1724444358143,0.001,63732.0,63731.0,0.4168298]
[1724444358348,0.001,63732.0,63731.0,0.5967388]
[1724444358563,0.001,63732.0,63731.0,0.2829198]
[1724444359066,0.001,63732.0,63731.0,0.5967388]
[1724444359707,0.002,63732.0,63731.0,0.6047388]
[1724444359914,0.001,63732.0,63731.0,0.6047388]
[1724444360133,0.02460193,63738.0,63732.0,0.156906]
[1724444360394,0.02460193,63738.0,63733.0,0.023]
[1724444360644,0.02460193,63738.0,63734.0,0.313803]
[1724444360835,0.02460193,63738.0,63733.0,0.023]
[1724444360836,0.02460193,63738.0,63735.0,0.023]
[1724444362722,0.02460193,63738.0,63735.0,0.002]
[1724444363582,0.02460193,63738.0,63735.0,0.025]
[1724444364016,0.02460193,63738.0,63735.0,0.006]
[1724444364233,0.02460193,63738.0,63736.0,0.023]
[1724444364855,0.156894,63737.0,63736.0,0.023]
[1724444365064,0.02460193,63738.0,63736.0,0.023]
[1724444365699,0.470683,63737.0,63736.0,0.025]
[1724444366118,0.470683,63737.0,63732.0,0.023]
[1724444366119,0.156902,63734.0,63732.0,0.023]
[1724444366332,0.156902,63734.0,63731.0,0.0009108]
[1724444366534,0.156904,63733.0,63731.0,0.0009108]
[1724444368638,0.02460193,63738.0,63732.0,0.26770298]
[1724444368848,0.02460193,63738.0,63737.0,0.656083]
[1724444369064,0.02460193,63738.0,63737.0,0.679083]
[1724444369277,0.02460193,63738.0,63737.0,0.365294]
[1724444369689,0.0005974,63743.0,63737.0,0.365294]
[1724444369896,0.1574774,63743.0,63738.0,0.023]
[1724444370124,0.0005974,63743.0,63742.0,0.156882]
[1724444370341,0.0005974,63743.0,63742.0,0.75534898]
[1724444370548,0.156852,63755.0,63742.0,0.26170298]
[1724444370791,0.04685725,63757.0,63749.0,0.156865]
[1724444371030,0.20370525,63756.0,63749.0,0.156865]
[1724444371270,0.20370525,63756.0,63750.0,0.156862]
[1724444371271,0.156848,63756.0,63750.0,0.156862]
[1724444371537,0.156848,63756.0,63748.0,0.313733]
[1724444371538,0.156861,63751.0,63745.0,0.156874]
[1724444371777,0.156861,63751.0,63745.0,0.151874]
[1724444371983,0.313708,63754.0,63745.0,0.151874]
[1724444372188,0.156859,63752.0,63745.0,0.151874]
[1724444372397,0.156859,63752.0,63743.0,0.47775998]
[1724444372398,0.0989,63755.0,63743.0,0.32087998]
[1724444372608,0.0989,63755.0,63735.0,0.313798]
[1724444372609,0.156874,63746.0,63744.0,0.023]
[1724444372819,0.313738,63748.0,63741.0,0.023]
[1724444373027,0.1567913,63747.0,63741.0,0.023]
[1724444373733,0.156872,63746.0,63741.0,0.023]
[1724444374510,0.156869,63748.0,63741.0,0.184883]
[1724444374743,0.15687,63747.0,63741.0,0.179883]
[1724444375211,0.156874,63746.0,63741.0,0.023]
[1724444375702,0.156869,63748.0,63741.0,0.028]
[1724444375939,0.15687,63747.0,63741.0,0.028]
[1724444376167,0.15687,63747.0,63741.0,0.035]
[1724444376627,0.156882,63742.0,63741.0,0.035]
[1724444376864,0.78441,63742.0,63741.0,0.005]
[1724444377077,0.78441,63742.0,63732.0,0.1044]
[1724444377078,0.156894,63737.0,63732.0,0.1044]
[1724444377281,0.156897,63736.0,63732.0,0.1044]
[1724444377517,0.36173027,63738.0,63732.0,0.1044]
[1724444377712,0.156896,63737.0,63732.0,0.1044]
[1724444377939,0.156896,63737.0,63733.0,0.023]
[1724444378391,0.156896,63737.0,63731.0,0.0009108]
[1724444378392,0.156907,63732.0,63731.0,0.0009108]
[1724444378619,0.1803,63735.0,63731.0,0.0009108]
[1724444378827,0.156907,63732.0,63731.0,0.0009108]
[1724444379034,0.47172102,63732.0,63731.0,0.0009108]
[1724444379249,0.470721,63732.0,63731.0,0.0009108]
[1724444379686,0.80913949,63732.0,63731.0,0.0009108]
[1724444379897,0.80913949,63732.0,63731.0,0.0059108]
[1724444380380,1.04259123,63732.0,63731.0,0.0009108]
[1724444380605,0.88055255,63732.0,63731.0,0.0099108]
[1724444380839,0.97397423,63732.0,63731.0,0.0139108]
[1724444381295,0.97397423,63732.0,63731.0,0.0099108]
[1724444381519,0.81013949,63732.0,63731.0,0.0099108]
[1724444381752,0.81013949,63732.0,63731.0,0.0329108]
[1724444381988,0.81013949,63732.0,63731.0,0.0239108]
[1724444382219,0.87954948,63732.0,63731.0,0.0249108]